{"text_format":"1","workbook":"xlsx","n_sheets":1,"sheets":["ADA CONSTRUCTION FEB 2023 CAA"],"not_rendered":{"charts":0,"images":0,"macros":1,"external_links":1,"defined_names":0,"comments":1,"pivot_tables":0},"unopened":[],"bounds":{"document_bytes":16777216,"sheet_cells":100000,"rows_first":2000,"rows_last":500,"rows_between":2000,"halvings":0,"cell_chars":16384,"cell_head_chars":4096},"cells_cut":0,"cells_raw":0,"read":"whole","date_system":"1900"}

{"sheet":"ADA CONSTRUCTION FEB 2023 CAA","index":0,"n_rows":234,"n_cols":10,"rows_kept":234,"cut":false,"hidden":false,"merged":[]}
["DEPARTMENT OF TRANSPORTATION - CALTRANS"]
["DBE Commitment at Award (CAA) on Federally Funded Major Construction Contracts - October 1, 2023 - February 29, 2024"]
[]
["Total Award Amount Year-to-Date (YTD)",null,"Total DBE Commitment Amount YTD",null,null,"Total Prime Contracts Awarded YTD"]
[1151925052.05,null,{"$f":"SUM(C7:C18)","v":263966066.08000001},null,null,{"$f":"SUM(C214:C231,I214:I231,F214:F231)","v":64}]
["Groups",null,"Commitment Dollars YTD","Firms YTD","Contracts YTD","% of Contracts","% of DBE $","% of Total $"]
["Hispanic American Male",null,{"$f":"SUMIF(D30:D100,\"m\", C30:C100)","v":87262898.460000008},{"$f":"COUNTIF(D30:D100,\"M\")","v":55},{"$f":"SUMIF(D30:D100,\"M\",E30:E100)","v":135},{"$f":"E7/E20","v":0.28907922912205569},{"$f":"C7/C5","v":0.33058377448241133},{"$f":"C7/A5","v":7.575397227858216E-2}]
["Hispanic American Female",null,{"$f":"SUMIF(D30:D100,\"F\", C30:C100)","v":32568492.960000005},{"$f":"COUNTIF(D30:D100,\"F\")","v":15},{"$f":"SUMIF(D30:D100,\"F\",E30:E100)","v":65},{"$f":"E8/E20","v":0.13918629550321199},{"$f":"C8/C5","v":0.12338136277762875},{"$f":"C8/A5","v":2.8273100669214676E-2}]
["African American Male",null,{"$f":"SUMIF(D116:D128,\"m\", C116:C128)","v":6586877},{"$f":"COUNTIF(D116:D128,\"M\")","v":9},{"$f":"SUMIF(D116:D128,\"M\",E116:E128)","v":16},{"$f":"E9/E20","v":3.4261241970021415E-2},{"$f":"C9/C5","v":2.4953499128951371E-2},{"$f":"C9/A5","v":5.7181471904598291E-3}]
["African American Female",null,{"$f":"SUMIF(D116:D128,\"F\", C116:C128)","v":9459044.0200000014},{"$f":"COUNTIF(D116:D128,\"F\")","v":3},{"$f":"SUMIF(D116:D128,\"F\",E116:E128)","v":13},{"$f":"E10/E20","v":2.7837259100642397E-2},{"$f":"C10/C5","v":3.5834318253366915E-2},{"$f":"C10/A5","v":8.2115099443027181E-3}]
["Asian Pacific Male",null,{"$f":"SUMIF(D143:D155,\"m\", C143:C155)","v":10317547.51},{"$f":"COUNTIF(D143:D155,\"M\")","v":7},{"$f":"SUMIF(D143:D155,\"M\",E143:E155)","v":19},{"$f":"E11/E20","v":4.068522483940043E-2},{"$f":"C11/C5","v":3.9086643458455257E-2},{"$f":"C11/A5","v":8.9567871552394714E-3}]
["Asian Pacific Female",null,{"$f":"SUMIF(D143:D155,\"F\", C143:C155)","v":9058648.1099999994},{"$f":"COUNTIF(D143:D155,\"F\")","v":5},{"$f":"SUMIF(D143:D155,\"F\",E143:E155)","v":23},{"$f":"E12/E20","v":4.9250535331905779E-2},{"$f":"C12/C5","v":3.4317472107398085E-2},{"$f":"C12/A5","v":7.8639214364501931E-3}]
["Subcontinent Asian Male",null,{"$f":"SUMIF(D131:D140,\"m\", C131:C140)","v":19746222.32},{"$f":"COUNTIF(D131:D140,\"M\")","v":7},{"$f":"SUMIF(D131:D140,\"M\",E131:E140)","v":19},{"$f":"E13/E20","v":4.068522483940043E-2},{"$f":"C13/C5","v":7.4805912037252273E-2},{"$f":"C13/A5","v":1.7141933222876816E-2}]
["Subcontinent Asian Female",null,{"$f":"SUMIF(D131:D140,\"F\", C131:C140)","v":511555},{"$f":"COUNTIF(D131:D140,\"F\")","v":2},{"$f":"SUMIF(D131:D140,\"F\",E131:E140)","v":4},{"$f":"E14/E20","v":8.5653104925053538E-3},{"$f":"C14/C5","v":1.9379574336837804E-3},{"$f":"C14/A5","v":4.4408705157477176E-4}]
["Native American Male",null,{"$f":"SUMIF(D103:D113,\"m\", C103:C113)","v":13310861.119999999},{"$f":"COUNTIF(D103:D113,\"M\")","v":7},{"$f":"SUMIF(D103:D113,\"M\",E103:E113)","v":19},{"$f":"E15/E20","v":4.068522483940043E-2},{"$f":"C15/C5","v":5.0426410173366319E-2},{"$f":"C15/A5","v":1.155531872174461E-2}]
["Native American Female",null,{"$f":"SUMIF(D103:D113,\"F\", C103:C113)","v":1733506.8},{"$f":"COUNTIF(D103:D113,\"F\")","v":3},{"$f":"SUMIF(D103:D113,\"F\",E103:E113)","v":3},{"$f":"E16/E20","v":6.4239828693790149E-3},{"$f":"C16/C5","v":6.5671577629020971E-3},{"$f":"C16/A5","v":1.5048781141750499E-3}]
["Non Minority Women",null,{"$f":"SUMIF(D162:D209,\"F\", C162:C209)","v":72059486.88000001},{"$f":"COUNTIF(D162:D209,\"F\")","v":48},{"$f":"SUMIF(D162:D209,\"F\",E162:E209)","v":150},{"$f":"E17/E20","v":0.32119914346895073},{"$f":"C17/C5","v":0.2729876909941939},{"$f":"C17/A5","v":6.2555707727478288E-2}]
["Other Men",null,{"$f":"SUMIF(D158:D159,\"m\", C158:C159)","v":1350925.9},{"$f":"COUNTIF(D158:D159,\"M\")","v":1},{"$f":"SUMIF(D158:D159,\"M\",E158:E159)","v":1},{"$f":"E18/E20","v":2.1413276231263384E-3},{"$f":"C18/C5","v":5.1178013903899894E-3},{"$f":"C18/A5","v":1.1727550308901192E-3}]
[null,null,null,null,null,{"$f":"E19/E20","v":0},{"$f":"C19/C5","v":0},{"$f":"C19/A5","v":0}]
["Total  ",null,{"$f":"SUM(C7:C18)","v":263966066.08000001},{"$f":"SUM(D7:D19)","v":162},{"$f":"SUM(E7:E19)","v":467}]
["Total Primes Contracts",null,{"$f":"SUM(C214:C231,I214:I231,F214:F231)","v":64}]
[]
["Yellow = DBEs",null,"Green = Trucking",25,37193812.920000002,0.14090376642855185]
["Red = Prime Contractor",null,"Blue = Supplier",29,54228818.000000007,0.20543859597303282]
["Red Italic = DBE firm as Prime",null,"White = Other",108,172543435.16,0.65365763759841533]
["BOLD = women"]
["* = Used both as Trucking & Supplier"]
[]
["Hispanic American","Column1","Dollars","M/F","Contract","Contract #","Number of Primes ","Prime Name","Districts"]
["3P LANDSCAPING ",-4142,{"$f":"'[1]Construction Worksheet'!G14","v":1400555},"M",3,{"$f":"fetchcomment(E30)","v":"08-1C5704\n12-0N8904\n06-0X3804"},3,{"$f":"fetchcomment(G30)","v":"SEMA CONSTRUCTION INC\nSECURITY PAVING COMPANY, INC.\nGRIFFITH COMPANY"},"6,8,12"]
["A & M CONSULTING ENGINEERS",-4142,{"$f":"'[1]Construction Worksheet'!G19","v":15600},"M",1,{"$f":"fetchcomment(E31)","v":"10-1E3004"},1,{"$f":"fetchcomment(G31)","v":"BAY CITIES PAVING & GRADING, INC."},10]
["A STAR SWEEPING",43,{"$f":"'[1]Construction Worksheet'!G32","v":911830},"M",11,{"$f":"fetchcomment(E32)","v":"01-0J6314\n03-4H0704\n01-0E11U4\n03-1H9904\n03-3H6104"},6,{"$f":"fetchcomment(G32)","v":"GRANTIE CONSTRUCTION COMPANY\nDESILVA GATES CONSTRUCTION LLC\nA. TEICHERT & SON INC DBA TEICHERT CONSTRUCTION\nO.C. JONES & SONS INC\nBAY CITIES PAVING & GRADING INC\nCAL VALLEY CONSTRUCTION INC"},"1, 3,4,6"]
["ABSL CONSTRUCTION",-4142,{"$f":"'[1]Construction Worksheet'!G58","v":4721765.5999999996},"M",12,{"$f":"fetchcomment(E33)","v":"01-0J6314\n02-4H0204\n03-4H0704\n10-0G8304\n01-0E11U4\n03-1H9904\n11-430254\n03-1H6304\n04-4J5404\n05-1H3104\n10-1E3004\n04-1Q5814\n01-0C55U4\n03-2J3204\n03-3H6104\n04-1J9604\n06-0X3004\n06-1A4604\n"},9,{"$f":"fetchcomment(G33)","v":"GRANTIE CONSTRUCTION COMPANY\nTULLIS INC\nDESILVA GATES CONSTRUCTION LLC\nVIKING CONSTRUCTION COMPANY\nA. TEICHERT & SON INC DBA TEICHERT CONSTRUCTION\nCSI/CJA A JOINT VENTURE\nO.C. JONES & SONS, INC.\nGHILOTTI BROS, INC.\nBAY CITIES PAVING & GRADING, INC."},"1,2,3,4,10,11"]
["ALL STATE TRUCKING",43,{"$f":"'[1]Construction Worksheet'!G74","v":51260},"M",1,{"$f":"fetchcomment(E34)","v":"08-1C5704"},1,{"$f":"fetchcomment(G34)","v":"SEMA CONSTRUCTION"},8]
["ALCORN FENCE COMPANY",-4142,{"$f":"'[1]Construction Worksheet'!G63","v":67989},"M",1,{"$f":"fetchcomment(E35)","v":"07-322904"},1,{"$f":"fetchcomment(G35)","v":"C. A. RASMUSSEN, INC."},7]
["ALFARO GENERAL ENGINEERING",-4142,{"$f":"'[1]Construction Worksheet'!G69","v":21070695.439999998},"M",2,{"$f":"fetchcomment(E36)","v":"07-338604"},1,{"$f":"fetchcomment(G36)","v":"ALFARO COMMUNICATIONS CONSTRUCTION, INC."},"7,8"]
["ALTAMONT REBAR CORP",-4142,{"$f":"'[1]Construction Worksheet'!G79","v":472500},"M",1,{"$f":"fetchcomment(E37)","v":"04-2Q5704"},1,{"$f":"fetchcomment(G37)","v":"DISNEY CONSTRUCTION, INC."},4]
["ALVAREZ AND SHAW INC",43,{"$f":"'[1]Construction Worksheet'!G83","v":2183337},"M",1,{"$f":"fetchcomment(E38)","v":"11-430304"},1,{"$f":"fetchcomment(G38)","v":"SB GENERAL ENGINEERING"},11]
["ANCO IRON & CONSTRUCTION",null,{"$f":"'[1]Construction Worksheet'!G90","v":295699.78999999998},"M",1,{"$f":"fetchcomment(E39)","v":"09-368004"},1,{"$f":"fetchcomment(G39)","v":"PAPICH CONSTRUCITON COMPANY INC"},9]
["ARBISO TRANPORTATION INC",43,{"$f":"'[1]Construction Worksheet'!G101","v":1377920},"M",3,{"$f":"fetchcomment(E40)","v":"02-3H6504\n02-4H0204\n02-4H0504"},2,{"$f":"fetchcomment(G40)","v":"J.F. SHEA CONSTRUCTION INC\nTULLIS INC"},2]
["ARGUELLO CONCRETE CONSTRUCTION ",null,{"$f":"'[1]Construction Worksheet'!G106","v":110160},"M",1,{"$f":"fetchcomment(E41)","v":"06-0X3004"},1,{"$f":"fetchcomment(G41)","v":"BAY CITIES PAVING AND GRADING"},6]
["AUSTIN ENTERPRISE",-4142,{"$f":"'[1]Construction Worksheet'!C15","v":3090778},"F",8,{"$f":"fetchcomment(E42)","v":"10-0G8304\n01-0E11U4\n03-1H9904\n11-430394\n05-1H3104\n10-1E3004\n11-2T3434\n03-3H6104"},7,{"$f":"fetchcomment(G42)","v":"VIKING CONSTRUCTION COMPANY INC\nGRANITE CONSTRUCTION COMPANY\nA. TEICHERT & SON INC DBA TEICHERT CONSTRUCTION\nGRIFFITH COMPANY\nBAY CITIES PAVING & GRADING, INC.\nWALSH CONSTRUCTION COMPANY II, LLC\nDESILVA GATES CONSTRUCTION LLC"},"1,3,5,10,11"]
["BARGAS ENVIRONMENTAL CONSULTING",-4142,{"$f":"'[1]Construction Worksheet'!C23","v":96990},"F",2,{"$f":"fetchcomment(E43)","v":"03-4H0704\n03-1H9904"},2,{"$f":"fetchcomment(G43)","v":"DESILVA GATES CONSTRUCTION LLC\nA. TEICHERT & SON INC DBA TEICHERT CONSTRUCTION"},3]
["BAY LINE CUTTING AND CORING",-4142,{"$f":"'[1]Construction Worksheet'!G113","v":20520},"M",1,{"$f":"fetchcomment(E44)","v":"04-0K7804"},1,{"$f":"fetchcomment(G44)","v":"GHILOTTI BROS INC"},4]
["BELLAGIO CONSTRUCITON ",null,{"$f":"'[1]Construction Worksheet'!G118","v":50547},"M",1,{"$f":"fetchcomment(E45)","v":"06-0X3004"},1,{"$f":"fetchcomment(G45)","v":"BAY CITIES PAVING AND GRADING"},6]
["BERT W. SALAS",-4142,{"$f":"'[1]Construction Worksheet'!G127","v":715884},"M",1,{"$f":"fetchcomment(E46)","v":"11-2T3434"},1,{"$f":"fetchcomment(G46)","v":"WALSH CONSTRUCTION COMPANY II, LLC"},11]
["BRUCE ANDERSON",-4142,{"$f":"'[1]Construction Worksheet'!G132","v":927740},"M",1,{"$f":"fetchcomment(E47)","v":"07-320804"},1,{"$f":"fetchcomment(G47)","v":"CALPROMAX ENGINEERING, INC."},7]
["BT TRUCKING",43,{"$f":"'[1]Construction Worksheet'!G140","v":1740496.6},"M",2,{"$f":"fetchcomment(E48)","v":"12-0S1504\n03-3H6104"},2,{"$f":"fetchcomment(G48)","v":"POWELL CONSTRUCTORS, INC\nDESILVA GATES CONSTRUCTOIN LLC"},"3,12"]
["C & N REINFORCING INC",-4142,{"$f":"'[1]Construction Worksheet'!G146","v":679550.64},"M",3,{"$f":"fetchcomment(E49)","v":"04-0K7804\n04-4J5404\n10-1E3004"},2,{"$f":"fetchcomment(G49)","v":"BAY CITIES PAVING & GRADING, INC.\nGHILOTTI BROS, INC."},4]
["CENTRAL COAST TRAFFIC SAFETY, INC.",-4142,{"$f":"'[1]Construction Worksheet'!G151","v":852349.7},"M",2,{"$f":"fetchcomment(E50)","v":"05-1H3104\n09-368004"},2,{"$f":"fetchcomment(G50)","v":"GRANITE CONSTRUCTION COMPANY\nPAPICH CONSTRUCITON COMPANY INC"},"5,9"]
["CHAVEZ TRUCKING",43,{"$f":"'[1]Construction Worksheet'!C29","v":2056114.65},"F",1,{"$f":"fetchcomment(E51)","v":"04-1Q5814"},1,{"$f":"fetchcomment(G51)","v":"BAY CITIES PAVING & GRADING, INC."},4]
["COASTLINE SWEEPERS",-4142,{"$f":"'[1]Construction Worksheet'!C35","v":55890},"F",1,{"$f":"fetchcomment(E52)","v":"05-1H3104"},1,{"$f":"fetchcomment(G52)","v":"GRANITE CONSTRUCTION COMPANY"},5]
["D.B. ELECTRIC, INC.",-4142,{"$f":"'[1]Construction Worksheet'!G156","v":477570},"M",1,{"$f":"fetchcomment(E53)","v":"07-351304"},1,{"$f":"fetchcomment(G53)","v":"POWELL CONSTRUCTORS, INC."},7]
["DELTA BAY CONSULTANTS LLC",-4142,{"$f":"'[1]Construction Worksheet'!G167","v":22148},"M",7,{"$f":"fetchcomment(E54)","v":"01-0J6314\n10-1H6504\n10-0G8304\n01-0E11U4\n04-4J5404\n07-347504\n01-0C55U4"},5,{"$f":"fetchcomment(G54)","v":"GRANITE CONSTRUCTION COMPANY\nMARINA LANDSCAPE INC\nVIKING CONSTRUCTION COMPANY INC\nGHILOTTI BROS, INC.\nGRIFFITH COMPANY"},"1,4,7,10"]
["DESIGN BUILD ENGINEERING",-4142,{"$f":"'[1]Construction Worksheet'!G173","v":1426760},"M",2,{"$f":"fetchcomment(E55)","v":"07-322904\n08-1H3804"},2,{"$f":"fetchcomment(G55)","v":"C. A. RASMUSSEN, INC.\nACCU CONSTRUCTION"},"7,8"]
["DIRT DYNASTY",-4142,{"$f":"'[1]Construction Worksheet'!G178","v":3612876.98},"M",1,{"$f":"fetchcomment(E56)","v":"10-1G2504"},1,{"$f":"fetchcomment(G56)","v":"DIRT DYNASTY"},10]
["DRAGON MATERIAL TRANSPORT",33,{"$f":"'[1]Construction Worksheet'!C47","v":7061140.8799999999},"F",8,{"$f":"fetchcomment(E57)","v":"02-3H6804\n02-4H0204\n02-4H6604\n02-4H0504\n03-4H6004\n04-0K7804\n04-4J5404\n04-1J9604"},7,{"$f":"fetchcomment(G57)","v":"J.F. SHEA CONSTRUCTION INC\nTULLIS INC\nSTIMPEL-WIEBELHAUS ASSOCIATES\nTULLIS INC\nDESILVA GATES CONSTRUCTION LLC\nGHILOTTI BROS\nO.C. JONES & SONS INC"},"2,3,4"]
["E & L GONZALEZ ENGINEERING",-4142,{"$f":"'[1]Construction Worksheet'!G186","v":1503549},"M",1,{"$f":"fetchcomment(E58)","v":"07-330304"},1,{"$f":"fetchcomment(G58)","v":"FEC FUTURE CONTRACTORS AND ENGINEERS INC"},7]
["ENDEMIC ENVIRONMENTAL SERVICES",-4142,{"$f":"'[1]Construction Worksheet'!G193","v":127750},"M",4,{"$f":"fetchcomment(E59)","v":"02-0J6404\n08-1J2604\n01-0C55U4\n02-4H0004"},4,{"$f":"fetchcomment(G59)","v":"BALDWIN CONTRACTING COMPANY, INC. DBA KNIFE RIVER CONSTRUCTION\nMARTIN MARIETTA SAN DIEGO AGGREGATES LLC DBA ATP GENERAL ENGINEERING CONTRACTORS\nGRANITE CONSTRUCTION COMPANY\nROCKY MOUNTAIN CONSTRUCTION"},"1,2,8"]
["FLASH TRAFFIC, INC.",-4142,{"$f":"'[1]Construction Worksheet'!C52","v":42960},"F",1,{"$f":"fetchcomment(E60)","v":"03-1H6304"},1,{"$f":"fetchcomment(G60)","v":"O.C. JONES & SONS, INC."},3]
["FRONTLINE TRAFFIC CONTROL",-4142,{"$f":"'[1]Construction Worksheet'!G208","v":2001404},"M",6,{"$f":"fetchcomment(E61)","v":"07-330304\n07-322904\n12-0S1504\n07-347504\n07-348804\n07-349504"},5,{"$f":"fetchcomment(G61)","v":"FEC FUTURE CONTRACTORS AND ENGINEERS INC\nC. A. RASMUSSEN, INC.\nPOWELL CONSTRUCTORS INC\nGRIFFITH COMPANY\nALFARO COMMUNICATIONS CONSTRUCTION"},"7,12"]
["FULL TRAFFIC MAINTENANCE, INC.",-4142,{"$f":"'[1]Construction Worksheet'!G213","v":790325},"M",2,{"$f":"fetchcomment(E62)","v":"07-338604\n08-496124"},1,{"$f":"fetchcomment(G62)","v":"ALFARO COMMUNICATIONS CONSTRUCTION, INC."},"7,8"]
["G&F CONCRETE CUTTING, INC.",-4142,{"$f":"'[1]Construction Worksheet'!C66","v":1010491.23},"F",7,{"$f":"fetchcomment(E63)","v":"07-322904\n11-430394\n10-1E3004\n11-2T3434\n03-3H6104\n06-0X3004\n07-349504"},6,{"$f":"fetchcomment(G63)","v":"C. A. RASMUSSEN, INC.\nGRIFFITH COMPANY\nBAY CITIES PAVING & GRADING, INC.\nWALSH CONSTRUCTION COMPANY II, LLC\nDESILVA GATES CONSTRUCTION LLC\nALFARO COMMUNICATIONS CONSTRUCITON INC"},"3,6,7,11"]
["GEOSTRUCTURAL",-4142,{"$f":"'[1]Construction Worksheet'!G218","v":877840},"M",1,{"$f":"fetchcomment(E64)","v":"12-0N8904"},1,{"$f":"fetchcomment(G64)","v":"SECURITY PAVING COMPANY, INC."},12]
["GOLDEN BAY FENCE PLUS INC",33,{"$f":"'[1]Construction Worksheet'!G225","v":24674},"M",1,{"$f":"fetchcomment(E65)","v":"04-0K7804\n"},1,{"$f":"fetchcomment(G65)","v":"GHILOTTI BROS., INC."},4]
["GOLDEN WEST FUEL",-4142,{"$f":"'[1]Construction Worksheet'!C74","v":4001246},"F",1,{"$f":"fetchcomment(E66)","v":"11-430254"},1,{"$f":"fetchcomment(G66)","v":"BALDWIN CONTRACTING COMPANY, INC. DBA KNIFE RIVER CONSTRUCTION"},11]
["GRIT & GRAVEL",-4142,{"$f":"'[1]Construction Worksheet'!C79","v":2851202.34},"F",1,{"$f":"fetchcomment(E67)","v":"07-322904"},1,{"$f":"fetchcomment(G67)","v":"C. A. RASMUSSEN, INC."},7]
["HIGH LIGHT ELECTRIC INC",-4142,{"$f":"'[1]Construction Worksheet'!G238","v":6538296.5999999996},"M",5,{"$f":"fetchcomment(E68)","v":"06-0U4304\n06-0X3304\n11-430394\n05-1H3104\n11-2T3434"},4,{"$f":"fetchcomment(G68)","v":"GRIFFITH COMPANY \nSECURITY PAVING COMPANY\nGRANITE CONSTRUCTION COMPANY\nWALSH CONSTRUCTION COMPANY II, LLC"},"5,6,12"]
["J PEREZ TRANSPORT",null,{"$f":"'[1]Construction Worksheet'!G244","v":359880},"M",1,{"$f":"fetchcomment(E69)","v":"09-368004"},1,{"$f":"fetchcomment(G69)","v":"PAPICH CONSTRUCITON COMPANY INC"},9]
["JEFFERSON STATE HIGHWAY INC",-4142,{"$f":"'[1]Construction Worksheet'!G264","v":1089102.6600000001},"M",10,{"$f":"fetchcomment(E70)","v":"01-0J6314\n02-3H6504\n02-3H82U4\n02-4H6604\n02-0J6404\n02-4H0504\n03-1H6304\n01-0C55U4\n02-4H0004\n09-368004"},9,{"$f":"fetchcomment(G70)","v":"GRANITE CONSTRUCTION COMPANY\nJ.F. SHEA CONSTRUCTION INC\nHAT CREEK CONSTRUCTION & MATERIALS INC\nSTIMPEL-WIEBELHAUS ASSOCIATES INC\nBALDWIN CONTRACTING COMPANY INC\nTULLIS INC\nO.C. JONES & SONS, INC.\nROCKY MOUNTAIN CONSTRUCTION\nPAPICH CONSTRUCTION COMPANY INC"},"1,2,3,9"]
["KODIAK TRUCKING INC",43,{"$f":"'[1]Construction Worksheet'!G269","v":452270},"M",1,{"$f":"fetchcomment(E71)","v":"06-0X3304\n"},1,{"$f":"fetchcomment(G71)","v":"SECURITY PAVING COMPANY INC"},6]
["L&B METAL PRODUCT FABRICATION",-4142,{"$f":"'[1]Construction Worksheet'!G274","v":131038.05},"M",1,{"$f":"fetchcomment(E72)","v":"02-4H0504"},1,{"$f":"fetchcomment(G72)","v":"TULLIS INC"},2]
["LA FIRMA INC",-4142,{"$f":"'[1]Construction Worksheet'!G282","v":110700},"M",4,{"$f":"fetchcomment(E73)","v":"01-0J6314\n05-1H3104\n01-0C55U4\n06-0W9704"},2,{"$f":"fetchcomment(G73)","v":"GRANITE CONSTRUCTION\nBORTOLUSSI & WATKIN INC"},"1,5,6"]
["LA STEEL SERVICES, INC.",-4142,{"$f":"'[1]Construction Worksheet'!G288","v":1359475.05},"M",1,{"$f":"fetchcomment(E74)","v":"12-0N8904"},1,{"$f":"fetchcomment(G74)","v":"SECURITY PAVING COMPANY, INC."},12]
["LOGISTICAL ENTERPRISES",33,{"$f":"'[1]Construction Worksheet'!C91","v":1916163.76},"F",7,{"$f":"fetchcomment(E75)","v":"03-1H9904\n07-320804\n02-0J6404\n03-4H6004\n03-1H6304\n03-2J3204\n03-3H6104"},5,{"$f":"fetchcomment(G75)","v":"A. TEICHERT & SON INC DBA TEICHERT CONSTRUCTION\nCALPROMAX ENGINEERING, INC.\nDESILVA GATES CONSTRUCTION\nCSI/CJA A JOINT VENTURE\nO.C. JONES & SONS, INC."},"2,3,7"]
["LONE STAR LANDSCAPE",-4142,{"$f":"'[1]Construction Worksheet'!G297","v":141148},"M",3,{"$f":"fetchcomment(E76)","v":"03-1H6304\n04-2Q5704\n04-3Q7604"},3,{"$f":"fetchcomment(G76)","v":"O.C. JONES & SONS, INC.\nDISNEY CONSTRUCTION, INC.\nGHILOTTI BROS INC"},"3,4"]
["LOWERS INDUSTRIAL SUPPLY",-4142,{"$f":"'[1]Construction Worksheet'!G302","v":229735.49},"M",1,{"$f":"fetchcomment(E77)","v":"07-351304"},1,{"$f":"fetchcomment(G77)","v":"POWELL CONSTRUCTORS, INC."},7]
["M & S ENVIRONMENTAL LANDSCAPES",33,{"$f":"'[1]Construction Worksheet'!G319","v":1586339.5},"M",8,{"$f":"fetchcomment(E78)","v":"01-0H6104\n02-3H6504\n02-3H82U4\n02-4H0204\n02-4H6604\n01-0E11U4\n02-0J6404\n02-4H0504"},7,{"$f":"fetchcomment(G78)","v":"MERCER FRASER COMPANY\nJ.F. SHEA CONSTRUCTION INC\nHAT CREEK CONSTRUCTION AND MATERIALS INC\nTULLIS INC\nSATIMPEL-WIEBELHAUS ASSOCIATES INC\nGRANITE CONSTRUCTION COMPANY\nBALDWIN CONTRACTING DBA KNIFE RIVER"},"1,2"]
["MANERI TRAFFIC CONTROL",-4142,{"$f":"'[1]Construction Worksheet'!C103","v":7111957.5},"F",8,{"$f":"fetchcomment(E79)","v":"11-430394\n12-0N8904\n07-321604\n08-1H3804\n11-430254\n07-351304\n08-1H9914\n08-1J2604"},8,{"$f":"fetchcomment(G79)","v":"GRIFFITH COMPANY\nSECURITY PAVING COMPANY, INC.\nRJ NOBLE COMPANY\nACCU CONSTRUCTION INC\nCSI/CJA A JOINT VENTURE\nPOWELL CONSTRUCTORS, INC.\nPETERSON-CHASE GENERAL ENGINEERING CONSTRUCTION INC.\nMARTIN MARIETTA SAN DIEGO AGGREGATES LLC DBA ATP GENERAL ENGINEERING CONTRACTORS"},"7,8,11,12"]
["MESA TRAFFIC SERVICES",null,{"$f":"'[1]Construction Worksheet'!G326","v":238875},"M",1,{"$f":"fetchcomment(E80)","v":"06-0X3004"},1,{"$f":"fetchcomment(G80)","v":"BAY CITIES PAVING AND GRADING"},6]
["MJD ENGINEERING",-4142,{"$f":"'[1]Construction Worksheet'!G335","v":8469616},"M",2,{"$f":"fetchcomment(E81)","v":"03-4H6004\n03-3H6104"},2,{"$f":"fetchcomment(G81)","v":"TULLIS INC\nDESILVA GATES  CONSTRUCITON LLC"},"2,3"]
["MONZON & SON ENTERPRISES, INC.",43,{"$f":"'[1]Construction Worksheet'!G341","v":469392},"M",1,{"$f":"fetchcomment(E82)","v":"12-0N8904"},1,{"$f":"fetchcomment(G82)","v":"SECURITY PAVING COMPANY, INC."},12]
["MORALES CONTRACTING",-4142,{"$f":"'[1]Construction Worksheet'!G346","v":69092.5},"M",1,{"$f":"fetchcomment(E83)","v":"11-430254"},1,{"$f":"fetchcomment(G83)","v":"CSI/CJA A JOINT VENTURE"},11]
["POLO ENGINEERING INC",null,{"$f":"'[1]Construction Worksheet'!C109","v":2058303.6},"F",1,{"$f":"fetchcomment(E84)","v":"07-357004"},1,{"$f":"fetchcomment(G84)","v":"POLO ENGINEERING INC"},7]
["PRE-CON PRODUCTS LTD",-4142,{"$f":"'[1]Construction Worksheet'!G357","v":698314.92999999993},"M",3,{"$f":"fetchcomment(E85)","v":"06-0U4304\n05-1H3104\n06-0X3004"},2,{"$f":"fetchcomment(G85)","v":"GRIFFITH COMPANY\nGRANITE CONSTRUCTION COMPANY"},"5, 6"]
["QA CONSTRUCTORS",-4142,{"$f":"'[1]Construction Worksheet'!G364","v":354020},"M",1,{"$f":"fetchcomment(E86)","v":"10-0G8304"},1,{"$f":"fetchcomment(G86)","v":"VIKING CONSTRUCTION COMPANY INC"},10]
["QUALITY TRAFFIC CONTROL",-4142,{"$f":"'[1]Construction Worksheet'!G372","v":1368247.4},"M",2,{"$f":"fetchcomment(E87)","v":"08-1C5704\n08-1G6404"},2,{"$f":"fetchcomment(G87)","v":"SEMA CONSTRUCTION INC\nSULLY-MILLER CONTRACTING COMPANY"},8]
["RANGEL BROTHERS TRUCKING",43,{"$f":"'[1]Construction Worksheet'!G382","v":1680735},"M",1,{"$f":"fetchcomment(E88)","v":"06-0X3304"},1,{"$f":"fetchcomment(G88)","v":"SECURITY PAVING COMPANY"},6]
["REYCON CONSTRUCTION, INC.",-4142,{"$f":"'[1]Construction Worksheet'!G386","v":2355700},"M",1,{"$f":"fetchcomment(E89)","v":"11-2T3434"},1,{"$f":"fetchcomment(G89)","v":"WALSH CONSTRUCTION COMPANY II, LLC"},11]
["ROBINSON SWEEPING INC",43,{"$f":"'[1]Construction Worksheet'!C116","v":477400},"F",2,{"$f":"fetchcomment(E90)","v":"01-0H6104\n04-3Q7604"},2,{"$f":"fetchcomment(G90)","v":"MERCER FRASER COMPANY\nGHILOTTI BROS"},"1,4"]
["RUPERT CONSTRUCTION SUPPLY",null,{"$f":"'[1]Construction Worksheet'!G393","v":3390227.98},"M",1,{"$f":"fetchcomment(E91)","v":"03-3H6104"},1,{"$f":"fetchcomment(G91)","v":"DESILVA GATES CONSTRUCTION LLC"},3]
["S & S TRUCKING",43,{"$f":"'[1]Construction Worksheet'!G403","v":47429.55},"M",2,{"$f":"fetchcomment(E92)","v":"04-0K7804\n04-4J5404"},1,{"$f":"fetchcomment(G92)","v":"GHILOTTI BROS., INC."},"4,8"]
["SANDOVAL SWEEPING",43,{"$f":"'[1]Construction Worksheet'!G409","v":700000},"M",1,{"$f":"fetchcomment(E93)","v":"07-321604"},1,{"$f":"fetchcomment(G93)","v":"R.J. NOBLE COMPANY"},7]
["SIERRA TREE COMPANY",-4142,{"$f":"'[1]Construction Worksheet'!G415","v":42000},"M",1,{"$f":"fetchcomment(E94)","v":"04-4G21A4"},1,{"$f":"fetchcomment(G94)","v":"JOHN SEMSEN LANDSCAPING CO., INC."},4]
["SWPPQUEEN",-4142,{"$f":"'[1]Construction Worksheet'!C128","v":267945},"F",6,{"$f":"fetchcomment(E95)","v":"03-4H0704\n07-322904\n03-4H6004\n07-347504\n11-2T3434\n03-3H6104"},4,{"$f":"fetchcomment(G95)","v":"DESILVA GATES CONSTRUCTION\nC. A. RASMUSSEN, INC.\nGRIFFITH COMPANY\nWALSH CONSTRUCTION COMPANY II, LLC\n"},"3,7,11"]
["T.D.W. CONSTRUCTION INC",-4142,{"$f":"'[1]Construction Worksheet'!G419","v":204530},"M",1,{"$f":"fetchcomment(E96)","v":"03-4H0704"},1,{"$f":"fetchcomment(G96)","v":"DESILVA GATES CONSTRUCTION"},3]
["TULLY INC",-4142,{"$f":"'[1]Construction Worksheet'!C152","v":469910},"F",11,{"$f":"fetchcomment(E97)","v":"10-1H6504\n10-0G8304\n03-1H9904\n07-320804\n03-1H6304\n10-1E3004\n04-1Q5814\n03-2J3204\n04-1J9604\n04-3Q7604\n06-0X3004"},7,{"$f":"fetchcomment(G97)","v":"MARINA LANDSCAPE INC\nVIKING CONSTRUCTION COMPANY INC\nA. TEICHERT & SON INC DBA TEICHERT CONSTRUCTION\nCALPROMAX ENGINEERING, INC.\nO.C. JONES & SONS, INC.\nBAY CITIES PAVING & GRADING, INC.\nGHILOTTI BROS INC"},"3,4,6,10"]
["VALDIVIA TRUCKING",43,{"$f":"'[1]Construction Worksheet'!G431","v":2507916},"M",4,{"$f":"fetchcomment(E98)","v":"01-0J6314\n01-0E11U4\n01-0C55U4\n04-1J9604"},2,{"$f":"fetchcomment(G98)","v":"GRANITE CONSTRUCTION COMPANY\nO.C. JONES & SONS INC"},"1,4"]
["WESTERN TRAFFIC SUPPLY, INC.",-4142,{"$f":"'[1]Construction Worksheet'!G438","v":4137520},"M",2,{"$f":"fetchcomment(E99)","v":"04-1Q5814\n10-1E3004"},1,{"$f":"fetchcomment(G99)","v":"BAY CITIES PAVING & GRADING, INC."},"4,10"]
[null,null,null,null,null,{"$f":"fetchcomment(E100)","v":""},null,{"$f":"fetchcomment(G100)","v":""}]
[]
["Native American","Column1","Dollars","M/F","Contract","Contract #","Number of Primes ","Prime Name","Districts"]
["CREST EQUIPMENT",-4142,{"$f":"'[1]Construction Worksheet'!K7","v":757512},"F",1,{"$f":"fetchcomment(E103)","v":"11-430254"},1,{"$f":"fetchcomment(G103)","v":"CSI/CJA A JOINT VENTURE"},11]
["DISABLED AMERICAN VETERAN",null,{"$f":"'[1]Construction Worksheet'!O9","v":197013.78},"M",1,{"$f":"fetchcomment(E104)","v":"06-1A4604"},1,{"$f":"fetchcomment(G104)","v":"CAL VALLEY CONSTRUCTION INC"},6]
["FORCE TRAFFIC CONTROL",null,{"$f":"'[1]Construction Worksheet'!O17","v":479000},"M",1,{"$f":"fetchcomment(E105)","v":"06-0X3804"},1,{"$f":"fetchcomment(G105)","v":"GRIFFITH COMPANY"},6]
["GLOBAL TRANSLOADING",-4142,{"$f":"'[1]Construction Worksheet'!K13","v":49230},"F",1,{"$f":"fetchcomment(E106)","v":"07-351304"},1,{"$f":"fetchcomment(G106)","v":"POWELL CONSTRUCTORS, INC."},7]
["KRC SAFETY CO INC",33,{"$f":"'[1]Construction Worksheet'!O37","v":1093850},"M",7,{"$f":"fetchcomment(E107)","v":"10-0G8304\n10-1L6304\n02-0J6404\n04-1J9604\n06-0W9704\n06-1A4604\n09-368004"},7,{"$f":"fetchcomment(G107)","v":"VIKING CONSTRUCTION COMPANY\nCORAL CONSTRUCTION COMPANY\nBALDWIN CONTRACTING COMPANY INC DBA KNIFE RIVER\nO.C. JONES & SONS INC\nBORTOLUSSI & WATKIN INC\nCAL VALLEY CONSTRUCTION INC\nPAPICH CONSTRUCITON COMPANY"},"2,4,6,9,10"]
["MCCULLOUGH CONSTRUCTION INC",-4142,{"$f":"'[1]Construction Worksheet'!O46","v":8619677.8399999999},"M",1,{"$f":"fetchcomment(E108)","v":"01-434844"},1,{"$f":"fetchcomment(G108)","v":"MCCULLOUGH CONSTRUCTION INC"},1]
["S.T. RHOADES CONSTRUCTION",-4142,{"$f":"'[1]Construction Worksheet'!O68","v":1320062},"M",3,{"$f":"fetchcomment(E109)","v":"01-0H6104\n02-0J6404\n02-4H0504"},3,{"$f":"fetchcomment(G109)","v":"MERCER FRASER\nBALDWIN CONTRACTING DBA KNIFE RIVER\nTULLIS INC"},"1,2"]
["SAM'S EQUIPMENT & SUPPLIES ",33,{"$f":"'[1]Construction Worksheet'!O60","v":1411957.5},"M",5,{"$f":"fetchcomment(E110)","v":"10-1H6504\n03-1H9904\n12-0S1504\n06-0W9704\n09-368004"},5,{"$f":"fetchcomment(G110)","v":"MARINA LANDSCAPE INC\nA. TEICHERT & SON INC DBA TEICHERT CONSTRUCTION\nPOWELL CONSTRUCTORS INC\nBORTOLUSSI & WATKIN INC\nPAPICH CONSTRUCTION COMPANY"},"3,6,9,10,12"]
["TOTAL TRAFFIC CONTROL",33,{"$f":"'[1]Construction Worksheet'!O76","v":189300},"M",1,{"$f":"fetchcomment(E111)","v":"10-1H6504"},1,{"$f":"fetchcomment(G111)","v":"MARINA LANDSCAPE INC"},10]
["WEST COAST DRILLING",-4142,{"$f":"'[1]Construction Worksheet'!K18","v":926764.8},"F",1,{"$f":"fetchcomment(E112)","v":"01-0J6314"},1,{"$f":"fetchcomment(G112)","v":"GRANITE CONSTRUCTION COMPANY"},1]
[null,null,null,null,null,{"$f":"fetchcomment(E113)","v":""},null,{"$f":"fetchcomment(G113)","v":""}]
[]
["African American","Column1","Dollars","M/F","Contract","Contract #","Number of Primes ","Prime Name","Districts"]
["ALLUVION BIOLOGICAL CONSULTING",-4142,{"$f":"'[1]Construction Worksheet'!W7","v":536010},"M",1,{"$f":"fetchcomment(E116)","v":"01-0E11U4"},1,{"$f":"fetchcomment(G116)","v":"GRANITE CONSTRUCTION COMPANY"},1]
["APPIAN UDBE SWPPPS",null,{"$f":"'[1]Construction Worksheet'!S7","v":850},"F",1,{"$f":"fetchcomment(E117)","v":"02-4H0004"},1,{"$f":"fetchcomment(G117)","v":"ROCKY MOUNTAIN CONSTRUCTION"},2]
["BLACK DIAMOND ASPHALT INC",33,{"$f":"'[1]Construction Worksheet'!S26","v":9380380.370000001},"F",10,{"$f":"fetchcomment(E118)","v":"01-0H6104\n02-3H6504\n03-4H0704\n03-1H9904\n02-0J6404\n03-1H6304\n10-1E3004\n01-0C55U4\n03-2J3204\n06-0X3004"},8,{"$f":"fetchcomment(G118)","v":"MERCER FRASER COMPANY\nJ.F. SHEA CONSTRUCTION INC\nDESILVA GATES CONSTRUCTION LLC\nA. TEICHERT & SON INC DBA TEICHERT CONSTRUCTION\nBALDWIN CONTRACTING COMPANY INC DBA KNIFE RIVER\nO.C. JONES & SONS, INC.\nBAY CITIES PAVING & GRADING, INC.\nGRANITE CONSTRUCTION COMPANY"},"1,2,3,6,10"]
["CGO CONSTRUCTION COMPANY",-4142,{"$f":"'[1]Construction Worksheet'!W12","v":119600},"M",2,{"$f":"fetchcomment(E119)","v":"11-430394\n12-0N8904"},2,{"$f":"fetchcomment(G119)","v":"GRIFFITH COMPANY\nSECURITY PAVING COMPANY, INC."},"11,12"]
["DEPENDABLE PETROLEUM PRODUCTS",33,{"$f":"'[1]Construction Worksheet'!W20","v":4327258},"M",4,{"$f":"fetchcomment(E120)","v":"08-1G6404\n11-430254\n08-1J2604\n03-3H6104"},4,{"$f":"fetchcomment(G120)","v":"SULLY-MILLER CONTRACTING COMPANY\nCSI/CJA A JOINT VENTURE\nMARTIN MARIETTA SAN DIEGO AGGREGATES LLC DBA ATP GENERAL ENGINEERING CONTRACTORS\nDESILVA GATES CONSTRUCTION LLC"},"3,8,11"]
["DOUBLE G'S SUPPLY, INC.",33,{"$f":"'[1]Construction Worksheet'!S39","v":77813.649999999994},"F",2,{"$f":"fetchcomment(E121)","v":"03-1H6304\n10-1E3004"},2,{"$f":"fetchcomment(G121)","v":"O.C. JONES & SONS, INC.\nBAY CITIES PAVING & GRADING, INC."},"3,10"]
["K & G CONCRETE PUMPING",-4142,{"$f":"'[1]Construction Worksheet'!W25","v":28899},"M",1,{"$f":"fetchcomment(E122)","v":"01-0E11U4"},1,{"$f":"fetchcomment(G122)","v":"GRANITE CONSTRUCTION COMPANY"},1]
["SYNERGY TRAFFIC CONTROL",-4142,{"$f":"'[1]Construction Worksheet'!W32","v":853050},"M",2,{"$f":"fetchcomment(E123)","v":"06-0X3304\n11-2T3434"},2,{"$f":"fetchcomment(G123)","v":"SECURITY PAVING COMPANY\nWALSH CONSTRUCTION COMPANY II, LLC"},"6,11"]
["TAYLOR WATER SERVICES",-4142,{"$f":"'[1]Construction Worksheet'!W37","v":30000},"M",1,{"$f":"fetchcomment(E124)","v":"01-0J6314"},1,{"$f":"fetchcomment(G124)","v":"GRANTIE CONSTRUCTION COMPANY"},1]
["THE QUALITY FIRM, ACS, AC",-4142,{"$f":"'[1]Construction Worksheet'!W42","v":91180},"M",1,{"$f":"fetchcomment(E125)","v":"11-430394"},1,{"$f":"fetchcomment(G125)","v":"GRIFFITH COMPANY"},11]
["THOMPSON CONTRACTING",-4142,{"$f":"'[1]Construction Worksheet'!W49","v":483240},"M",3,{"$f":"fetchcomment(E126)","v":"03-1H6304\n04-4J5404\n03-22J3204"},2,{"$f":"fetchcomment(G126)","v":"O.C. JONES & SONS, INC.\nGHILOTTI BROS, INC."},"3,4"]
["TK TRANSPORTATION",-4142,{"$f":"'[1]Construction Worksheet'!W56","v":117640},"M",1,{"$f":"fetchcomment(E127)","v":"02-4H6604"},1,{"$f":"fetchcomment(G127)","v":"STIMPEL-WIEBELHAUS ASSOCIATES INC"},2]
[null,null,null,null,null,{"$f":"fetchcomment(E128)","v":""},null,{"$f":"fetchcomment(G128)","v":""}]
[]
["Sub Cont Asian","Column1","Dollars","M/F","Contract","Contract #","Number of Primes ","Prime Name","Districts"]
["A1 TRUCKING SVS, INC.",43,{"$f":"'[1]Construction Worksheet'!AE11","v":12983597.120000001},"M",4,{"$f":"fetchcomment(E131)","v":"04-2G7804\n10-1E3004\n04-1Q5814\n06-0X3004"},2,{"$f":"fetchcomment(G131)","v":"FBD VANGUARD CONSTRUCTION, INC.\nBAY CITIES PAVING & GRADING, INC."},"4,6,10"]
["ACCURATE EARTHWORKS INC",-4142,{"$f":"'[1]Construction Worksheet'!AE17","v":419875.2},"M",1,{"$f":"fetchcomment(E132)","v":"04-0K1304"},1,{"$f":"fetchcomment(G132)","v":"DESILVA GATES CONSTRUCTION LLC"},4]
["CHANNA TRUCKING INC",43,{"$f":"'[1]Construction Worksheet'!AA8","v":141300},"F",1,{"$f":"fetchcomment(E133)","v":"04-0K7804"},1,{"$f":"fetchcomment(G133)","v":"GHILOTTI BROS INC"},4]
["DESTINATION ANYWHERE, INC.",-4142,{"$f":"'[1]Construction Worksheet'!AE23","v":1048545},"M",1,{"$f":"fetchcomment(E134)","v":"03-1H6304"},1,{"$f":"fetchcomment(G134)","v":"O.C. JONES & SONS, INC."},3]
["JASS BOYS TRUCK LINES",-4142,{"$f":"'[1]Construction Worksheet'!AE29","v":3505900},"M",2,{"$f":"fetchcomment(E135)","v":"04-4J5404\n10-1E3004"},2,{"$f":"fetchcomment(G135)","v":"GHILOTTI BROS, INC.\nBAY CITIES PAVING & GRADING, INC."},"4,10"]
["S & S TRUCKING",null,{"$f":"'[1]Construction Worksheet'!AE36","v":25800},"M",1,{"$f":"fetchcomment(E136)","v":"04-3Q7604"},1,{"$f":"fetchcomment(G136)","v":"GHILOTTI BROS INC"},4]
["SEQUOIA CONSULTANT INC",33,{"$f":"'[1]Construction Worksheet'!AE53","v":1602005},"M",9,{"$f":"fetchcomment(E137)","v":"03-4H0704\n07-322904\n03-4H6004\n11-430254\n12-0S1504\n05-1H3104\n08-1J2604\n11-2T3434\n03-3H6104"},8,{"$f":"fetchcomment(G137)","v":"ST. FRANCIS ELECTRIC LLC\nC. A. RASMUSSEN, INC.\nDESILVA GATES CONSTRUCTION\nCSI/CJA A JOINT VENTURE\nPOWELL CONSTRUCTORS INC\nGRANITE CONSTRUCTION COMPANY\nMARTIN MARIETTA SAN DIEGO AGGREGATES LLC DBA ATP GENERAL ENGINEERING CONTRACTORS\nWALSH CONSTRUCTION COMPANY II, LLC"},"3,5,7,8,11,12"]
["SIERRA GEOTECH DBE, INC.",-4142,{"$f":"'[1]Construction Worksheet'!AA18","v":370255},"F",3,{"$f":"fetchcomment(E138)","v":"03-1H9904\n03-3H6104\n04-3Q7604"},3,{"$f":"fetchcomment(G138)","v":"A. TEICHERT & SON INC DBA TEICHERT CONSTRUCTION\nDESILVA GATES CONSTRUCTION LLC\nGHILOTTI BROS INC"},"3,4"]
["SONNY'S TRUCKING",43,{"$f":"'[1]Construction Worksheet'!AE60","v":160500},"M",1,{"$f":"fetchcomment(E139)","v":"10-1E3004"},1,{"$f":"fetchcomment(G139)","v":"BAY CITIES PAVING & GRADING, INC."},10]
[null,null,null,null,null,{"$f":"fetchcomment(E140)","v":""},null,{"$f":"fetchcomment(G140)","v":""}]
[]
["Asian Pacific","Column1","Dollars","M/F","Contract","Contract #","Number of Primes ","Prime Name","Districts"]
["ACE FENCE COMPANY",-4142,{"$f":"'[1]Construction Worksheet'!AI20","v":3970144.45},"F",11,{"$f":"fetchcomment(E143)","v":"06-0X3304\n07-320804\n11-430394\n11-430254\n12-0S1504\n05-1H3104\n07-351304\n08-1J2604\n11-2T3434\n06-0W9704\n06-0X3804"},9,{"$f":"fetchcomment(G143)","v":"SECURITY PAVING COMPANY\nCALPROMAX ENGINEERING, INC.\nGRIFFITH COMPANY\nPOWELL CONSTRUCTORS INC\nCSI/CJA A JOINT VENTURE\nGRANITE CONSTRUCTION COMPANY\nMARTIN MARIETTA SAN DIEGO AGGREGATES LLC DBA ATP GENERAL ENGINEERING CONTRACTORS\nWALSH CONSTRUCTION COMPANY II, LLC\nBORTOLUSSI & WATKIN INC"},"5,6,7,8,11,12"]
["BAY TECH ENGINEERING, INC.",-4142,{"$f":"'[1]Construction Worksheet'!AM6","v":1607500},"M",1,{"$f":"fetchcomment(E144)","v":"04-2Q5704"},1,{"$f":"fetchcomment(G144)","v":"DISNEY CONSTRUCTION, INC."},4]
["BRIDGE RUBBER BEARING",-4142,{"$f":"'[1]Construction Worksheet'!AM13","v":59896},"M",4,{"$f":"fetchcomment(E145)","v":"01-0J6314\n10-0G8304\n01-0E11U4\n03-3H6104"},3,{"$f":"fetchcomment(G145)","v":"GRANTIE CONSTRUCTION COMPANY\nVIKING CONSTRUCTION COMPANY\nDESILVA GATES CONSTRUCTION LLC"},"1,3,10"]
["CALIFORNIA PROFESSIONAL",-4142,{"$f":"'[1]Construction Worksheet'!AM20","v":3595549},"M",3,{"$f":"fetchcomment(E146)","v":"07-320804\n07-321604\n08-1J2604"},3,{"$f":"fetchcomment(G146)","v":"CALPROMAX ENGINEERING, INC.\nR.J. NOBLE COMPANY\nMARTIN MARIETTA SAN DIEGO AGGREGATES LLC DBA ATP GENERAL ENGINEERING CONTRACTORS"},"7,8"]
["GLOBAL ROAD SEALING INC",-4142,{"$f":"'[1]Construction Worksheet'!AM29","v":2333514},"M",6,{"$f":"fetchcomment(E147)","v":"06-0X3304\n07-322904\n12-0N8904\n07-338604\n08-496124\n07-349504"},3,{"$f":"fetchcomment(G147)","v":"SECURITY PAVING COMPANY\nC. A. RASMUSSEN, INC.\nALFARO COMMUNICATIONS CONSTRUCTION, INC."},"6,7,8,12"]
["HUNSAKER & ASSOCIATES",-4142,{"$f":"'[1]Construction Worksheet'!AM34","v":115108},"M",1,{"$f":"fetchcomment(E148)","v":"07-322904"},1,{"$f":"fetchcomment(G148)","v":"C. A. RASMUSSEN, INC."},7]
["JJ NGUYEN",33,{"$f":"'[1]Construction Worksheet'!AM39","v":62752},"M",1,{"$f":"fetchcomment(E149)","v":"04-4J5404"},1,{"$f":"fetchcomment(G149)","v":"GHILOTTI BROS, INC."},4]
["LMS TRANSPORT",-4142,{"$f":"'[1]Construction Worksheet'!AM47","v":2543228.5099999998},"M",3,{"$f":"fetchcomment(E150)","v":"06-0X3304\n07-322904\n11-430394"},3,{"$f":"fetchcomment(G150)","v":"SECURITY PAVING COMPANY\nC. A. RASMUSSEN, INC.\nGRIFFITH COMPANY"},"6,7,11"]
["NITTA EROSION CONTROL",null,{"$f":"'[1]Construction Worksheet'!AI27","v":7876},"F",1,{"$f":"fetchcomment(E151)","v":"02-4H0004"},1,{"$f":"fetchcomment(G151)","v":"ROCKY MOUNTAIN CONSTRUCTION"},2]
["PRIME SUPPLY 1",-4142,{"$f":"'[1]Construction Worksheet'!AI41","v":240286.66},"F",6,{"$f":"fetchcomment(E152)","v":"08-1C5704\n10-1H6504\n03-1H9904\n05-1H3104\n07-347504\n11-2T3434"},6,{"$f":"fetchcomment(G152)","v":"SEMA CONSTRUCTION INC\nMARINA LANDSCAPE INC\nA. TEICHERT & SON INC DBA TEICHERT CONSTRUCTION\nGRANITE CONSTRUCTION COMPANY\nGRIFFITH COMPANY\nWALSH CONSTRUCTION COMPANY II, LLC"},"3,5,7,8,10,11"]
["TRI COUNTIES TRUCKING",43,{"$f":"'[1]Construction Worksheet'!AI64","v":4575641},"F",4,{"$f":"fetchcomment(E153)","v":"03-4H0704\n03-1H9904\n02-4H0004\n03-3H6104"},3,{"$f":"fetchcomment(G153)","v":"DESILVA GATES CONSTRUCTION\nA. TEICHERT & SON INC DBA TEICHERT CONSTRUCTION\nROCKY MOUNTAIN CONSTRUCTION"},"2,3"]
["TRAFFIC LOOPS CRACKFILLING",-4142,{"$f":"'[1]Construction Worksheet'!AI47","v":264700},"F",1,{"$f":"fetchcomment(E154)","v":"11-430254"},1,{"$f":"fetchcomment(G154)","v":"CSI/CJA A JOINT VENTURE"},11]
[null,null,null,null,null,{"$f":"fetchcomment(E155)","v":""},null,{"$f":"fetchcomment(G155)","v":""}]
[]
["Other","Column1","Dollars","M/F","Contract","Contract #","Number of Primes ","Prime Name","Districts"]
["ALFARO COMMUNICATIONS CONSTRUCTION, INC.",null,{"$f":"'[1]Construction Worksheet'!AW10","v":1350925.9},"M",1,{"$f":"fetchcomment(E158)","v":"08-1J6804\n"},1,{"$f":"fetchcomment(G158)","v":"ALFARO COMMUNICATIONS CONSTRUCTION INC"},8]
[null,null,null,null,null,{"$f":"fetchcomment(E159)","v":""},null,{"$f":"fetchcomment(G159)","v":""}]
[]
["Non Minority Women","Column1","Dollars","M/F","Contract","Contract #","Number of Primes ","Prime Name","Districts"]
["ACTION SWEEPING SERVICES, INC.",43,{"$f":"'[1]Construction Worksheet'!AQ12","v":463440},"F",3,{"$f":"fetchcomment(E162)","v":"03-1H6304\n03-2J3204\n04-1J9604"},1,{"$f":"fetchcomment(G162)","v":"O.C. JONES & SONS, INC."},"3,4"]
["ALTA GROUP",-4142,{"$f":"'[1]Construction Worksheet'!AQ17","v":1096003},"F",2,{"$f":"fetchcomment(E163)","v":"01-0E11U4\n10-1E3004"},2,{"$f":"fetchcomment(G163)","v":"GRANITE CONSTRUCTION COMPANY\nBAY CITIES PAVING & GRADING, INC."},"1,10"]
["AMERICAN PAVING SUPPLY",33,{"$f":"'[1]Construction Worksheet'!AQ22","v":616204.21},"F",2,{"$f":"fetchcomment(E164)","v":"11-430254\n10-1E3004"},1,{"$f":"fetchcomment(G164)","v":"CSI/CJA A JOINT VENTURE\nBAY CITIES PAVING & GRADING, INC."},"10,11"]
["AURORA INDUSTRIAL HYGIENE",-4142,{"$f":"'[1]Construction Worksheet'!AQ28","v":4200},"F",2,{"$f":"fetchcomment(E165)","v":"05-1H3104\n06-0W9704"},2,{"$f":"fetchcomment(G165)","v":"GRANITE CONSTRUCTION COMPANY\nBORTOLUSSI & WATKIN"},"5,6"]
["AVILA TRAFFIC SAFETY",33,{"$f":"'[1]Construction Worksheet'!AQ33","v":463900},"F",1,{"$f":"fetchcomment(E166)","v":"06-0U4304"},1,{"$f":"fetchcomment(G166)","v":"GRIFFITH COMPANY"},6]
["BANCROFT CONSTRUCTION SERVICES",43,{"$f":"'[1]Construction Worksheet'!AQ39","v":622237},"F",1,{"$f":"fetchcomment(E167)","v":"11-2T3434"},1,{"$f":"fetchcomment(G167)","v":"WALSH CONSTRUCTION COMPANY II, LLC"},11]
["BOBS BACKHOE & TRUCKING",43,{"$f":"'[1]Construction Worksheet'!AQ44","v":213231},"F",1,{"$f":"fetchcomment(E168)","v":"05-1H3104"},1,{"$f":"fetchcomment(G168)","v":"GRANITE CONSTRUCTION COMPANY"},5]
["CAL SIGNAL CORP",33,{"$f":"'[1]Construction Worksheet'!AQ51","v":994034.89},"F",4,{"$f":"fetchcomment(E169)","v":"02-3H6504\n02-4H0204\n02-4H0504\n10-1E3004"},3,{"$f":"fetchcomment(G169)","v":"J.F. SHEA CONSTRUCTION INC\nTULLIS INC\nBAY CITIES PAVING & GRADING, INC."},"2,10"]
["CAT TRACKING",-4142,{"$f":"'[1]Construction Worksheet'!AQ56","v":300027.25},"F",2,{"$f":"fetchcomment(E170)","v":"07-320804\n06-1A4604"},2,{"$f":"fetchcomment(G170)","v":"CALPROMAX ENGINEERING, INC.\nCAL VALLEY CONSTRUCTION INC"},"6,7"]
["CES",-4142,{"$f":"'[1]Construction Worksheet'!AQ61","v":91647},"F",1,{"$f":"fetchcomment(E171)","v":"12-0N8904"},1,{"$f":"fetchcomment(G171)","v":"SECURITY PAVING COMPANY, INC."},12]
["CHAVEZ GENERAL ENGINEERING",-4142,{"$f":"'[1]Construction Worksheet'!AQ67","v":3798000},"F",2,{"$f":"fetchcomment(E172)","v":"02-3H6804\n02-4H0004"},2,{"$f":"fetchcomment(G172)","v":"J.F. SHEA CONSTRUCTION\nROCKY MOUNTAIN CONSTRUCTION"},2]
["CMC TRAFFIC CONTROL",-4142,{"$f":"'[1]Construction Worksheet'!AQ72","v":153600},"F",1,{"$f":"fetchcomment(E173)","v":"04-2G7804"},1,{"$f":"fetchcomment(G173)","v":"FBD VANGUARD CONSTRUCTION, INC."},4]
["COLUMBIA ELECTRIC, INC.",-4142,{"$f":"'[1]Construction Worksheet'!AQ80","v":2513556},"F",4,{"$f":"fetchcomment(E174)","v":"04-2G7804\n04-0K7804\n04-4J5404\n04-1Q5814"},3,{"$f":"fetchcomment(G174)","v":"FBD VANGUARD CONSTRUCTION, INC.\nGHILOTTI BROS INC\nBAY CITIES PAVING & GRADING, INC."},4]
["COOPER ENGINEERING",33,{"$f":"'[1]Construction Worksheet'!AQ86","v":847255.25},"F",1,{"$f":"fetchcomment(E175)","v":"11-430254"},1,{"$f":"fetchcomment(G175)","v":"CSI/CJA A JOINT VENTURE"},11]
["DEES BURKE ENGINEERING",-4142,{"$f":"'[1]Construction Worksheet'!AQ110","v":8171038.8200000003},"F",13,{"$f":"fetchcomment(E176)","v":"01-0J6314\n02-3H6804\n10-0G8304\n03-1H9904\n11-430394\n03-4H6004\n04-0K7804\n12-0S1504\n04-4J5404\n07-351304\n03-3H6104\n04-1J9604\n06-0X3004"},10,{"$f":"fetchcomment(G176)","v":"GRANTIE CONSTRUCTION COMPANY\nJ.F. SHEA CONSTRUCTION COMPANY INC\nVIKING CONSTRUCTION COMPANY INC\nA. TEICHERT & SON INC DBA TEICHERT CONSTRUCTION\nGRIFFITH COMPANY\nDESILVA GATES CONSTRUCTION\nGHILOTTI BROS INC\nPOWELL CONSTRUCTORS\nO.C. JONES AND SONS INC\nBAY CITIES PAVING & GRADING INC"},"1,2,3,4,6,7,10,11,12"]
["DIVERSIFIED LANDSCAPE CO",-4142,{"$f":"'[1]Construction Worksheet'!AQ121","v":4677113.3000000007},"F",3,{"$f":"fetchcomment(E177)","v":"11-430254\n08-1J2604\n07-349504"},3,{"$f":"fetchcomment(G177)","v":"CSI/CJA A JOINT VENTURE\nMARTIN MARIETTA SAN DIEGO AGGREGATES LLC DBA ATP GENERAL ENGINEERING CONTRACTORS\nALFARO COMMUNICATIONS CONSTRUCTION INC"},"7,8,11"]
["DOUBLE E TRANSPORTATION",33,{"$f":"'[1]Construction Worksheet'!AQ127","v":2530997.75},"F",2,{"$f":"fetchcomment(E178)","v":"06-0U4304\n06-0X3804"},1,{"$f":"fetchcomment(G178)","v":"GRIFFITH COMPANY"},6]
["GALLAWAY ENTERPRISES",-4142,{"$f":"'[1]Construction Worksheet'!AQ135","v":107806},"F",4,{"$f":"fetchcomment(E179)","v":"02-4H0204\n03-4H6004\n03-1H6304\n03-3H6104"},3,{"$f":"fetchcomment(G179)","v":"TULLIS INC\nDESILVA GATES CONSTRUCTION\nO.C. JONES & SONS, INC."},"2,3"]
["J & M LAND RESTORATION INC",-4142,{"$f":"'[1]Construction Worksheet'!AQ146","v":1356860},"F",4,{"$f":"fetchcomment(E180)","v":"06-0X3304\n06-0U4304\n06-0X3804\n09-368004"},3,{"$f":"fetchcomment(G180)","v":"SECURITY PAVING COMPANY\nGRIFFITH COMPANY\nPAPICH CONSTRUCTION COMPANY INC"},"6,9"]
["JARRETT FOUNDATIONS INC.",33,{"$f":"'[1]Construction Worksheet'!AQ151","v":584670},"F",1,{"$f":"fetchcomment(E181)","v":"01-0E11U4"},1,{"$f":"fetchcomment(G181)","v":"GRANITE CONSTRUCTION COMPANY"},1]
["JOHNS EQUIPMENT RENTAL ",43,{"$f":"'[1]Construction Worksheet'!AQ155","v":361536},"F",1,{"$f":"fetchcomment(E182)","v":"11-430254"},1,{"$f":"fetchcomment(G182)","v":"CSI/CJA A JOINT VENTURE"},11]
["K&K CONSTRUCTION SUPPLY, INC.",33,{"$f":"'[1]Construction Worksheet'!AQ161","v":783559.76},"F",1,{"$f":"fetchcomment(E183)","v":"03-1H9904"},1,{"$f":"fetchcomment(G183)","v":"A. TEICHERT & SON INC DBA TEICHERT CONSTRUCTION"},3]
["LD INNOVATIONS",-4142,{"$f":"'[1]Construction Worksheet'!AQ167","v":88527},"F",1,{"$f":"fetchcomment(E184)","v":"04-0K1304"},1,{"$f":"fetchcomment(G184)","v":"ST. FRANCIS ELECTRIC LLC"},4]
["LINDYS COLD PLANNING",-4142,{"$f":"'[1]Construction Worksheet'!AQ177","v":6092703},"F",6,{"$f":"fetchcomment(E185)","v":"08-1G6404\n07-322904\n11-430394\n11-430254\n05-1H3104\n09-368004"},6,{"$f":"fetchcomment(G185)","v":"SULLY-MILLER CONTRACTING COMPANY\nC. A. RASMUSSEN, INC.\nGRIFFITH COMPANY\nCSI/CJA A JOINT VENTURE\nGRANITE CONSTRUCTION COMPANY\nPAPICH CONSTRUCTION COMPANY, INC."},"5,7,8,9,11"]
["LMS TRANSPORT ",33,{"$f":"'[1]Construction Worksheet'!AQ184","v":2585022.4},"F",4,{"$f":"fetchcomment(E186)","v":"07-321604\n05-1H3104\n11-2T3434\n09-368004"},4,{"$f":"fetchcomment(G186)","v":"R.J.NOBLE COMPANY\nGRANITE CONSTRUCTION COMPANY\nWALSH CONSTRUCTION COMPANY II, LLC\nPAPICH CONSTRUCTION COMPANY, INC."},"5,7,9,11"]
["LOWERS INDUSTRIAL SUPPLY",33,{"$f":"'[1]Construction Worksheet'!AQ189","v":165162.98000000001},"F",1,{"$f":"fetchcomment(E187)","v":"12-0S1504"},1,{"$f":"fetchcomment(G187)","v":"POWELL CONSTRUCTORS INC"},12]
["MCW TRAFFIC CONTROL",-4142,{"$f":"'[1]Construction Worksheet'!AQ199","v":541295},"F",4,{"$f":"fetchcomment(E188)","v":"02-4H6604\n10-1L6304\n03-1H6304\n10-1E3004"},4,{"$f":"fetchcomment(G188)","v":"STIMPEL-WIEBELHAUS ASSOCIATES INC\nCORAL CONSTRUCTION COMPANY\nO.C. JONES & SONS, INC.\nBAY CITIES PAVING & GRADING, INC."},"2,5,10"]
["MOUNTAINVEIW BIOLOGICAL",-4142,{"$f":"'[1]Construction Worksheet'!AQ206","v":182299.84},"F",2,{"$f":"fetchcomment(E189)","v":"08-1C5704\n08-1H9914"},2,{"$f":"fetchcomment(G189)","v":"SEMA CONSTRUCTION INC\nPETERSON-CHASE GENERAL ENGINEERING CONSTRUCTION INC."},8]
["NICHOLLS TRUCKING INC",43,{"$f":"'[1]Construction Worksheet'!AQ213","v":648750},"F",1,{"$f":"fetchcomment(E190)","v":"01-0H6104"},1,{"$f":"fetchcomment(G190)","v":"MERCER FRASER COMPANY"},1]
["PAYCO SPECIALTIES",-4142,{"$f":"'[1]Construction Worksheet'!AQ222","v":1895878},"F",4,{"$f":"fetchcomment(E191)","v":"11-430304\n11-430394\n11-430254\n11-2T3434"},4,{"$f":"fetchcomment(G191)","v":"SB GENERAL ENGINEERING INC\nGRIFFITH COMPANY\nCSI/CJA A JOINT VENTURE\nWALSH CONSTRUCTION COMPANY II, LLC"},11]
["PC & N CONSTRUCTION INC",-4142,{"$f":"'[1]Construction Worksheet'!AQ235","v":3134610.9600000004},"F",9,{"$f":"fetchcomment(E192)","v":"02-3H6804\n02-4H0204\n02-3H6504\n10-1L6304\n02-4H0504\n04-0K7804\n10-1E3004\n04-1Q5814\n02-4H0004\n"},6,{"$f":"fetchcomment(G192)","v":"J.F. SHEA CONSTRUCTION INC\nTULLIS INC\nCORAL CONSTRUCTION COMPANY\nGHILOTTI BROS\nBAY CITIES PAVING & GRADING, INC.\nROCKY MOUNTAIN CONSTRUCTION "},"2,4,10"]
["PLAYA SAFETY, INC.",-4142,{"$f":"'[1]Construction Worksheet'!AQ242","v":355658.22000000003},"F",4,{"$f":"fetchcomment(E193)","v":"07-351304\n08-1H9914\n10-1E3004\n11-2T3434"},4,{"$f":"fetchcomment(G193)","v":"POWELL CONSTRUCTORS, INC.\nPETERSON-CHASE GENERAL ENGINEERING CONSTRUCTION INC.\nBAY CITIES PAVING & GRADING, INC.\nWALSH CONSTRUCTION COMPANY II, LLC"},"7,8,10,11"]
["QUALITY HYDROSEEDING & RESTORATION",33,{"$f":"'[1]Construction Worksheet'!AQ247","v":447000},"F",1,{"$f":"fetchcomment(E194)","v":"08-1J2604"},1,{"$f":"fetchcomment(G194)","v":"MARTIN MARIETTA SAN DIEGO AGGREGATES LLC DBA ATP GENERAL ENGINEERING CONTRACTORS"},8]
["ROBERTS OIL CORPORATION",-4142,{"$f":"'[1]Construction Worksheet'!AQ253","v":120000},"F",1,{"$f":"fetchcomment(E195)","v":"12-0N8904"},1,{"$f":"fetchcomment(G195)","v":"SECURITY PAVING COMPANY, INC."},12]
["ROLL N ROCK CONSTRUCTION",-4142,{"$f":"'[1]Construction Worksheet'!AQ271","v":8157043.3799999999},"F",10,{"$f":"fetchcomment(E196)","v":"01-0H6104\n02-3H6504\n02-3H6804\n02-4H0204\n03-4H0704\n10-0G8304\n03-1H9904\n02-4H0004\n03-3H6104\n04-3Q7604"},8,{"$f":"fetchcomment(G196)","v":"MERCER FRASER COMPANY\nJ.F. SHEA CONSTRUCTION INC\nTULLIS INC\nDESILVA GATES CONSTRUCTION\nVIKING CONSTRUCTION & MATERIALS INC\nA. TEICHERT & SON INC DBA TEICHERT CONSTRUCTION\nROCKY MOUNTAIN CONSTRUCTION \nGHILOTTI BROS INC"},"1,2,3,4,10"]
["ROUCH REBAR INC",-4142,{"$f":"'[1]Construction Worksheet'!AQ278","v":126335.99},"F",3,{"$f":"fetchcomment(E197)","v":"11-430254\n12-0S1504\n07-351304"},2,{"$f":"fetchcomment(G197)","v":"CSI/CJA A JOINT VENTURE\nPOWELL CONSTRUCTORS INC"},"7,11,12"]
["RUPERT CONSTRUCTION SUPPLY",33,{"$f":"'[1]Construction Worksheet'!AQ286","v":269374.61},"F",2,{"$f":"fetchcomment(E198)","v":"12-0S1504\n11-2T3434"},2,{"$f":"fetchcomment(G198)","v":"POWELL CONSTRUCTORS INC\nWALSH CONSTRUCTION COMPANY II, LLC"},"11,12"]
["S.A.M. RHODES",-4142,{"$f":"'[1]Construction Worksheet'!AQ293","v":63500},"F",3,{"$f":"fetchcomment(E199)","v":"02-3H82U4\n03-4H0704\n02-4H0004"},3,{"$f":"fetchcomment(G199)","v":"HAT CREEK CONSTRUCTION MATERIALS\nDESILVA GATES CONSTRUCTION LLC\nROCKY MOUNTAIN CONSTRUCTION"},"2,3"]
["SUPER SEAL & STRIPE",-4142,{"$f":"'[1]Construction Worksheet'!AQ299","v":103230},"F",1,{"$f":"fetchcomment(E200)","v":"05-1H3104"},1,{"$f":"fetchcomment(G200)","v":"GRANITE CONSTRUCTION COMPANY"},5]
["SUPERIOR HYDROSEEDING",-4142,{"$f":"'[1]Construction Worksheet'!AQ305","v":6961.5},"F",1,{"$f":"fetchcomment(E201)","v":"10-1L6304"},1,{"$f":"fetchcomment(G201)","v":"CORAL CONSTRUCTION COMPANY"},10]
["T & S DVBE",33,{"$f":"'[1]Construction Worksheet'!AQ326","v":9823312.4600000009},"F",12,{"$f":"fetchcomment(E202)","v":"01-0J6314\n02-3H82U4\n01-0E11U4\n04-2G7804\n02-0J6404\n02-4H0504\n04-0K7804\n03-1H6304\n04-4J5404\n10-1E3004\n01-0C55U4\n04-1J9604"},8,{"$f":"fetchcomment(G202)","v":"GRANTIE CONSTRUCTION COMPANY\nHAT CREEK CONSTRUCTION MATERIALS\nFBD VANGUARD CONSTRUCTION, INC.\nBALDWIN CONTRACTING COMPANY INC DBA KNIFE RIVER\nTULLIS INC\nGHILOTTI BROS, INC.\nO.C. JONES & SONS, INC.\nBAY CITIES PAVING & GRADING, INC."},"1,2,3,4,10"]
["TEK SERVICES ",33,{"$f":"'[1]Construction Worksheet'!AQ336","v":1519498.81},"F",3,{"$f":"fetchcomment(E203)","v":"11-430254\n07-348804\n07-349504"},2,{"$f":"fetchcomment(G203)","v":"CSI/CJA A JOINT VENTURE\nALFARO COMMUNICATIONS CONSTRUCTION INC"},"7,11"]
["TRIUMPH GEO SYNTHETICS INC",33,{"$f":"'[1]Construction Worksheet'!AQ341","v":19190.96},"F",2,{"$f":"fetchcomment(E204)","v":"12-0S1504\n07-351304"},1,{"$f":"fetchcomment(G204)","v":"POWELL CONSTRUCTORS INC"},"7,12"]
["TYRRELL RESOURCES",-4142,{"$f":"'[1]Construction Worksheet'!AQ360","v":2700533.5},"F",11,{"$f":"fetchcomment(E205)","v":"02-3H6804\n02-3H82U4\n03-4H0704\n10-0G8304\n01-0E11U4\n03-1H9904\n02-0J6404\n02-4H0504\n03-1H6304\n01-0C55U4\n03-3H6104"},9,{"$f":"fetchcomment(G205)","v":"J.F. SHEA CONSTRUCTION INC\nHAT CREEK CONSTRUCTION MATERIALS INC\nDESILVA GATES CONSTRUCTION \nVIKING CONSTRUCTION COMPANY \nGRANITE CONSTRUCTION COMPANY\nA. TEICHERT & SON INC DBA TEICHERT CONSTRUCTION\nBALDWIN CONTRACTING COMPANY INC DBA KNIFE RIVER \nTULLIS\nO.C. JONES & SONS, INC."},"1,2,3,10"]
["VERIDICO GROUP INC",-4142,{"$f":"'[1]Construction Worksheet'!AQ370","v":10380},"F",1,{"$f":"fetchcomment(E206)","v":"02-3H6504"},1,{"$f":"fetchcomment(G206)","v":"J.F. SHEA CONSTRUCTION"},2]
["WATER COMPONENTS & BUILDING",-4142,{"$f":"'[1]Construction Worksheet'!AQ376","v":11743.54},"F",2,{"$f":"fetchcomment(E207)","v":"04-4J5404\n04-3Q7604"},1,{"$f":"fetchcomment(G207)","v":"GHILOTTI BROS, INC."},4]
["WEST COAST WATER & TRUCKING",43,{"$f":"'[1]Construction Worksheet'!AQ383","v":1981800},"F",4,{"$f":"fetchcomment(E208)","v":"03-1H9904\n03-1H6304\n03-2J3204\n03-3H6104"},3,{"$f":"fetchcomment(G208)","v":"A. TEICHERT & SON INC DBA TEICHERT CONSTRUCTION\nO.C. JONES & SONS, INC.\nDESILVA GATES CONSTRUCTION LLC"},3]
["WHITE CAP READY MIX INC",33,{"$f":"'[1]Construction Worksheet'!AQ391","v":258757.5},"F",1,{"$f":"fetchcomment(E209)","v":"02-0J6404"},1,{"$f":"fetchcomment(G209)","v":"BALDWIN CONTRACTING COMPANY, INC. DBA KNIFE RIVER CONSTRUCTION"},2]
[null,{"$f":"COUNTIF(B30:B209, \"33\")","v":27}]
[null,{"$f":"COUNTIF(B30:B209, \"43\")","v":23}]
[null,{"$f":"COUNTIF(B30:B209, \"-4142\")","v":99}]
["Prime Name",null,"Number of Contracts","Contract #","Prime Name","Number of Contracts","Contract #","Prime Name","Number of Contracts","Contract #"]
["A. TEICHERT & SON INC DBA \nTEICHERT CONSTRUCTION",null,1,{"$f":"fetchcomment(C214)","v":"03-1H9904"},"GRANITE CONSTRUCTION COMPANY",4,{"$f":"fetchcomment(F214)","v":"01-0J6314\n01-0E11U4\n05-1H3104\n01-0C55U4"},"SEMA CONSTRUCTION, INC.",1,{"$f":"fetchcomment(I214)","v":"08-1C5704"}]
["ACCU CONSTRUCTION INC",null,1,{"$f":"fetchcomment(C215)","v":"08-1H3804"},"GRIFFITH COMPANY",4,{"$f":"fetchcomment(F215)","v":"06-0U4304\n11-430394\n07-347504\n06-0X3804"},"ST. FRANCIS ELECTRIC LLC",1,{"$f":"fetchcomment(I215)","v":"04-0K1304\n"}]
["ALFARO COMMUNICATIONS CONSTRUCTION INC",null,3,{"$f":"fetchcomment(C216)","v":"07-348804\n07-349504\n08-1J6804"},"HAT CREEK CONSTRUCTION & MATERIALS, INC.",1,{"$f":"fetchcomment(F216)","v":"02-3H82U4"},"STIMPEL-WIEBELHAUS ASSOCIATES,  INC.",1,{"$f":"fetchcomment(I216)","v":"02-4H6604"}]
["ALFARO GENERAL ENGINEERING",null,2,{"$f":"fetchcomment(C217)","v":"07-338604\n08-496124"},"J.F. SHEA CONSTRUCTION, INC.",2,{"$f":"fetchcomment(F217)","v":"02-3H6504\n02-3H6804"},"SULLY-MILLER CONTRACTING COMPANY",1,{"$f":"fetchcomment(I217)","v":"08-1G6404"}]
["BALDWIN CONTRACTING COMPANY INC DBA KINFE RIVER CONSTRUCTION",null,1,{"$f":"fetchcomment(C218)","v":"02-0J6404"},"JOHN SEMSEN LANDSCAPING CO., INC.",1,{"$f":"fetchcomment(F218)","v":"04-4G21A4"},"TULLIS, INC.",2,{"$f":"fetchcomment(I218)","v":"02-4H0204\n02-4H0504"}]
["BAY CITIES PAVING & GRADING, INC.",null,3,{"$f":"fetchcomment(C219)","v":"04-1Q5814\n10-1E3004\n06-0X3004"},"MARINA LANDSCAPE INC.",1,{"$f":"fetchcomment(F219)","v":"10-1H6504"},"VIKING CONSTRUCTION COMPANY, INC.",1,{"$f":"fetchcomment(I219)","v":"10-0G8304"}]
["BORTOLUSSI & WATKIN, INC.",null,1,{"$f":"fetchcomment(C220)","v":"06-0W9704"},"MARTIN MARIETTA SAN DIEGO AGGREGATES LLC DBA ATP GENERAL ENGINEERING CONTRACTORS",1,{"$f":"fetchcomment(F220)","v":"08-1J2604"},"WALSH CONSTRUCTION COMPANY II, LLC",1,{"$f":"fetchcomment(I220)","v":"11-2T3434"}]
["C. A. RASMUSSEN, INC.",null,1,{"$f":"fetchcomment(C221)","v":"07-322904"},"MCCULLOUGH CONSTRUCTION",1,{"$f":"fetchcomment(F221)","v":"01-434844"}]
["CAL VALLEY CONSTRUCTION INC",null,1,{"$f":"fetchcomment(C222)","v":"06-1A4604"},"MERCER FRASER COMPANY",1,{"$f":"fetchcomment(F222)","v":"01-0H6104\n"}]
["CALPROMAX ENGINEERING, INC.",null,1,{"$f":"fetchcomment(C223)","v":"07-320804"},"O.C. JONES & SONS, INC.",3,{"$f":"fetchcomment(F223)","v":"03-1H6304\n03-2J3204\n04-1J9604"}]
["CORAL CONSTRUCTION COMPANY",null,1,{"$f":"fetchcomment(C224)","v":"10-1L6304"},"PAPICH CONSTRUCTION COMPANY INC",1,{"$f":"fetchcomment(F224)","v":"09-368004"}]
["CSI/CJA A JOINT VENTURE",null,1,{"$f":"fetchcomment(C225)","v":"11-430254"},"PETERSON-CHASE GENERAL ENGINEERING CONSTRUCTION INC.",1,{"$f":"fetchcomment(F225)","v":"08-1H9914"}]
["DESILVA GATES CONSTRUCTION LLC",null,3,{"$f":"fetchcomment(C226)","v":"03-4H0704\n03-4H6004\n03-3H6104"},"POLO ENGINEERING INC",1,{"$f":"fetchcomment(F226)","v":"07-357004"}]
["DIRT DYNASTY INC",null,1,{"$f":"fetchcomment(C227)","v":"10-1G2504"},"POWELL CONSGTRUCTORS INC",2,{"$f":"fetchcomment(F227)","v":"12-0S1504\n07-351304"}]
["DISNEY CONSTRUCTION, INC.",null,1,{"$f":"fetchcomment(C228)","v":"04-2Q5704"},"R.J. NOBLE COMPANY",1,{"$f":"fetchcomment(F228)","v":"07-321604"}]
["FBD VANGUARD CONSTRUCTION, INC.",null,1,{"$f":"fetchcomment(C229)","v":"04-2G7804"},"ROCKY MOUNTAIN CONSTRUCTION",1,{"$f":"fetchcomment(F229)","v":"02-4H0004"}]
["FEC FUTURE CONTRACTORS AND ENGINEERS, INC.",null,1,{"$f":"fetchcomment(C230)","v":"07-330304"},"SB GENERAL ENGINEERING, INC.",1,{"$f":"fetchcomment(F230)","v":"11-430304"}]
["GHILOTTI BROS INC",null,3,{"$f":"fetchcomment(C231)","v":"04-0K7804\n04-4J5404\n04-3Q7604"},"SECURITY PAVING COMPANY, INC.",2,{"$f":"fetchcomment(F231)","v":"06-0X3304\n12-0N8904"}]
[]
["To see names of prime contractors/contract numbers, place your cursor on comment tab (red triangle)."]
["Caltrans DBE Reports: http://www.dot.ca.gov/hq/bep/reports.htm"]